[Event "Titled Tuesday Blitz November 07 Early 2023"]
[White "Kubicka, Anna"]
[Black "Yen, William"]
[WhiteFideId "1152254"]
[BlackFideId "30932025"]
[WhiteElo "2498"]
[BlackElo "2665"]
[Result "1-0"]
[Round "7"]
[TimeControl "180+1"]
[Date "2023.11.07"]
[WhiteClock "0:00:04"]
[BlackClock "0:00:43"]
[Board "96"]

1. e4 {[%clk 0:03:00]}  c5 {[%clk 0:02:53]} 2. Ne2 {[%clk 0:03:00]}  d6 {[%clk 0:02:51]} 3. g3 {[%clk 0:03:01]}  h5 {[%clk 0:02:32]} 4. Bh3 {[%clk 0:03:01]}  h4 {[%clk 0:02:31]} 5. Bxc8 {[%clk 0:03:00]}  Qxc8 {[%clk 0:02:28]} 6. d4 {[%clk 0:02:59]}  hxg3 {[%clk 0:02:26]} 7. fxg3 {[%clk 0:02:56]}  Nf6 {[%clk 0:02:24]} 8. Nbc3 {[%clk 0:02:54]}  Qg4 {[%clk 0:01:58]} 9. dxc5 {[%clk 0:02:37]}  Nc6 {[%clk 0:01:52]} 10. cxd6 {[%clk 0:02:16]}  O-O-O {[%clk 0:01:49]} 11. Nf4 {[%clk 0:01:29]}  Qxg3+ {[%clk 0:01:46]} 12. hxg3 {[%clk 0:01:23]}  Rxh1+ {[%clk 0:01:47]} 13. Ke2 {[%clk 0:01:19]}  Rxd1 {[%clk 0:01:48]} 14. Kxd1 {[%clk 0:01:20]}  Rxd6+ {[%clk 0:01:42]} 15. Bd2 {[%clk 0:01:14]}  g6 {[%clk 0:01:39]} 16. Nfd5 {[%clk 0:01:04]}  Bg7 {[%clk 0:01:37]} 17. Ke2 {[%clk 0:00:52]}  Nxe4 {[%clk 0:01:31]} 18. Nxe7+ {[%clk 0:00:47]}  Nxe7 {[%clk 0:01:32]} 19. Nxe4 {[%clk 0:00:47]}  Re6 {[%clk 0:01:31]} 20. Kf3 {[%clk 0:00:44]}  Bxb2 {[%clk 0:01:31]} 21. Rh1 {[%clk 0:00:39]}  Nf5 {[%clk 0:01:25]} 22. Ng5 {[%clk 0:00:28]}  Nd4+ {[%clk 0:01:22]} 23. Kg4 {[%clk 0:00:19]}  Re2 {[%clk 0:01:22]} 24. Bf4 {[%clk 0:00:16]}  f5+ {[%clk 0:01:20]} 25. Kh3 {[%clk 0:00:16]}  Rxc2 {[%clk 0:01:16]} 26. Be5 {[%clk 0:00:15]}  Ne2 {[%clk 0:01:11]} 27. Bxb2 {[%clk 0:00:14]}  Rxb2 {[%clk 0:01:12]} 28. Rd1 {[%clk 0:00:11]}  Rxa2 {[%clk 0:01:09]} 29. Ne6 {[%clk 0:00:11]}  b6 {[%clk 0:01:07]} 30. Rd8+ {[%clk 0:00:10]}  Kb7 {[%clk 0:01:08]} 31. Rg8 {[%clk 0:00:11]}  Ra3 {[%clk 0:01:04]} 32. Rxg6 {[%clk 0:00:11]}  f4 {[%clk 0:01:01]} 33. Rg7+ {[%clk 0:00:11]}  Ka6 {[%clk 0:01:00]} 34. Nc7+ {[%clk 0:00:10]}  Ka5 {[%clk 0:01:00]} 35. Rg5+ {[%clk 0:00:11]}  Ka4 {[%clk 0:00:58]} 36. Kh4 {[%clk 0:00:04]}  Rxg3 {[%clk 0:00:57]} 37. Rf5 {[%clk 0:00:04]}  Rg7 {[%clk 0:00:54]} 38. Nd5 {[%clk 0:00:05]}  b5 {[%clk 0:00:49]} 39. Re5 {[%clk 0:00:05]}  f3 {[%clk 0:00:47]} 40. Re4+ {[%clk 0:00:04]}  Ka5 {[%clk 0:00:46]} 41. Re3 {[%clk 0:00:04]}  Rd7 {[%clk 0:00:43]} 42. Ra3# {[%clk 0:00:04]} 1-0


[Site "https://www.chess.com"]

[Event "Titled Tuesday Blitz November 07 Early 2023"]
[White "Degenbaev, Aziz"]
[Black "Lehtosaari, Mauri"]
[WhiteFideId "13802640"]
[BlackFideId "501999"]
[WhiteElo "2655"]
[BlackElo "2497"]
[Result "1-0"]
[Round "7"]
[TimeControl "180+1"]
[Date "2023.11.07"]
[WhiteClock "0:01:41"]
[BlackClock "0:00:05"]
[Board "97"]

1. e4 {[%clk 0:03:00]}  d5 {[%clk 0:02:56]} 2. exd5 {[%clk 0:03:00]}  Qxd5 {[%clk 0:02:55]} 3. Nc3 {[%clk 0:03:00]}  Qd8 {[%clk 0:02:49]} 4. d4 {[%clk 0:03:00]}  Nf6 {[%clk 0:02:48]} 5. Nf3 {[%clk 0:03:00]}  Bg4 {[%clk 0:02:47]} 6. Be2 {[%clk 0:02:59]}  e6 {[%clk 0:02:42]} 7. h3 {[%clk 0:03:00]}  Bxf3 {[%clk 0:02:42]} 8. Bxf3 {[%clk 0:03:00]}  c6 {[%clk 0:02:43]} 9. O-O {[%clk 0:03:00]}  Nbd7 {[%clk 0:02:40]} 10. Bf4 {[%clk 0:03:00]}  Be7 {[%clk 0:02:35]} 11. Qd3 {[%clk 0:02:53]}  O-O {[%clk 0:02:32]} 12. Rfe1 {[%clk 0:02:53]}  Nd5 {[%clk 0:02:28]} 13. Bxd5 {[%clk 0:02:46]}  cxd5 {[%clk 0:02:28]} 14. Qg3 {[%clk 0:02:44]}  Bf6 {[%clk 0:02:25]} 15. Rad1 {[%clk 0:02:43]}  a6 {[%clk 0:02:13]} 16. Rd3 {[%clk 0:02:39]}  Rc8 {[%clk 0:02:12]} 17. Red1 {[%clk 0:02:31]}  Qb6 {[%clk 0:02:06]} 18. b3 {[%clk 0:02:27]}  Qa5 {[%clk 0:01:59]} 19. b4 {[%clk 0:02:19]}  Qxb4 {[%clk 0:01:28]} 20. Bd6 {[%clk 0:02:15]}  Qb2 {[%clk 0:01:28]} 21. Bxf8 {[%clk 0:02:15]}  Nxf8 {[%clk 0:01:24]} 22. Rb1 {[%clk 0:02:13]}  Qxc2 {[%clk 0:01:23]} 23. Rxb7 {[%clk 0:02:14]}  Bxd4 {[%clk 0:01:09]} 24. Rxd4 {[%clk 0:02:05]}  Rxc3 {[%clk 0:01:03]} 25. Qd6 {[%clk 0:01:56]}  Rc8 {[%clk 0:00:33]} 26. Rdb4 {[%clk 0:01:49]}  e5 {[%clk 0:00:20]} 27. Rb8 {[%clk 0:01:48]}  Qc1+ {[%clk 0:00:20]} 28. Kh2 {[%clk 0:01:46]}  Rxb8 {[%clk 0:00:20]} 29. Qxb8 {[%clk 0:01:47]}  Qg5 {[%clk 0:00:14]} 30. Qd6 {[%clk 0:01:45]}  Qf6 {[%clk 0:00:11]} 31. Qxd5 {[%clk 0:01:45]}  g6 {[%clk 0:00:10]} 32. f3 {[%clk 0:01:40]}  Kg7 {[%clk 0:00:10]} 33. Re4 {[%clk 0:01:40]}  Ne6 {[%clk 0:00:05]} 34. Qxe5 {[%clk 0:01:41]} 1-0


[Site "https://www.chess.com"]

[Event "Titled Tuesday Blitz November 07 Early 2023"]
[White "Mendez Fortes, Eduardo Jesus"]
[Black "Grossboss19"]
[WhiteFideId "3502376"]
[WhiteElo "2654"]
[BlackElo "2496"]
[Result "1-0"]
[Round "7"]
[TimeControl "180+1"]
[Date "2023.11.07"]
[WhiteClock "0:00:36"]
[BlackClock "0:00:03"]
[Board "98"]

1. e4 {[%clk 0:03:00]}  c6 {[%clk 0:02:47]} 2. d4 {[%clk 0:02:59]}  d5 {[%clk 0:02:45]} 3. e5 {[%clk 0:02:59]}  Bf5 {[%clk 0:02:45]} 4. Nf3 {[%clk 0:03:00]}  h6 {[%clk 0:02:41]} 5. Be2 {[%clk 0:03:00]}  e6 {[%clk 0:02:41]} 6. Nbd2 {[%clk 0:03:00]}  Ne7 {[%clk 0:02:42]} 7. Nb3 {[%clk 0:03:00]}  Nd7 {[%clk 0:02:42]} 8. O-O {[%clk 0:03:00]}  Qc7 {[%clk 0:02:41]} 9. a4 {[%clk 0:03:01]}  Rc8 {[%clk 0:02:35]} 10. a5 {[%clk 0:03:00]}  g5 {[%clk 0:02:32]} 11. Bd2 {[%clk 0:03:00]}  Bg7 {[%clk 0:02:32]} 12. Bb4 {[%clk 0:02:59]}  Bh7 {[%clk 0:02:28]} 13. Bd6 {[%clk 0:02:56]}  Qd8 {[%clk 0:02:27]} 14. Nc5 {[%clk 0:02:54]}  Nxc5 {[%clk 0:02:25]} 15. dxc5 {[%clk 0:02:54]}  Nf5 {[%clk 0:02:24]} 16. c3 {[%clk 0:02:49]}  Nxd6 {[%clk 0:02:20]} 17. exd6 {[%clk 0:02:48]}  O-O {[%clk 0:02:17]} 18. Bd3 {[%clk 0:02:46]}  e5 {[%clk 0:02:12]} 19. Bxh7+ {[%clk 0:02:45]}  Kxh7 {[%clk 0:02:13]} 20. Re1 {[%clk 0:02:44]}  e4 {[%clk 0:02:11]} 21. Nd2 {[%clk 0:02:42]}  f5 {[%clk 0:02:08]} 22. Nb3 {[%clk 0:02:35]}  Rf7 {[%clk 0:01:58]} 23. Nd4 {[%clk 0:02:34]}  Qd7 {[%clk 0:01:43]} 24. Qh5 {[%clk 0:02:32]}  Rcf8 {[%clk 0:01:38]} 25. b4 {[%clk 0:02:29]}  a6 {[%clk 0:01:31]} 26. Rad1 {[%clk 0:02:28]}  f4 {[%clk 0:01:28]} 27. f3 {[%clk 0:02:28]}  e3 {[%clk 0:01:24]} 28. Kf1 {[%clk 0:02:16]}  Re8 {[%clk 0:01:13]} 29. Re2 {[%clk 0:02:16]}  Bxd4 {[%clk 0:01:07]} 30. cxd4 {[%clk 0:02:15]}  Qf5 {[%clk 0:01:06]} 31. Ke1 {[%clk 0:02:14]}  Kg7 {[%clk 0:01:01]} 32. Rb2 {[%clk 0:02:07]}  Qg6 {[%clk 0:00:45]} 33. Qxg6+ {[%clk 0:02:03]}  Kxg6 {[%clk 0:00:46]} 34. Ke2 {[%clk 0:02:04]}  h5 {[%clk 0:00:46]} 35. Rc1 {[%clk 0:02:03]}  g4 {[%clk 0:00:43]} 36. h3 {[%clk 0:02:02]}  Kf5 {[%clk 0:00:40]} 37. hxg4+ {[%clk 0:02:00]}  hxg4 {[%clk 0:00:41]} 38. Rh1 {[%clk 0:02:00]}  Rg8 {[%clk 0:00:40]} 39. Rbb1 {[%clk 0:01:55]}  gxf3+ {[%clk 0:00:39]} 40. gxf3 {[%clk 0:01:52]}  Rg2+ {[%clk 0:00:38]} 41. Kd3 {[%clk 0:01:53]}  Rd2+ {[%clk 0:00:32]} 42. Kc3 {[%clk 0:01:53]}  Rf2 {[%clk 0:00:33]} 43. Rh3 {[%clk 0:01:50]}  Ke6 {[%clk 0:00:29]} 44. Rg1 {[%clk 0:01:33]}  Kd7 {[%clk 0:00:23]} 45. Kd3 {[%clk 0:01:22]}  Rd2+ {[%clk 0:00:23]} 46. Kc3 {[%clk 0:01:23]}  Rf2 {[%clk 0:00:21]} 47. Rg5 {[%clk 0:01:09]}  Rf1 {[%clk 0:00:16]} 48. Re5 {[%clk 0:01:00]}  Rc1+ {[%clk 0:00:15]} 49. Kb2 {[%clk 0:00:59]}  Rd1 {[%clk 0:00:14]} 50. Rh8 {[%clk 0:00:57]}  Rxd4 {[%clk 0:00:13]} 51. Kc3 {[%clk 0:00:56]}  Rc4+ {[%clk 0:00:13]} 52. Kb3 {[%clk 0:00:56]}  Rc1 {[%clk 0:00:10]} 53. Rb8 {[%clk 0:00:56]}  Rf6 {[%clk 0:00:07]} 54. Rxb7+ {[%clk 0:00:55]}  Kc8 {[%clk 0:00:07]} 55. d7+ {[%clk 0:00:53]}  Kxb7 {[%clk 0:00:05]} 56. d8=Q {[%clk 0:00:53]}  Rf7 {[%clk 0:00:05]} 57. Re7+ {[%clk 0:00:53]}  Rxe7 {[%clk 0:00:05]} 58. Qxe7+ {[%clk 0:00:53]}  Kc8 {[%clk 0:00:05]} 59. Qf8+ {[%clk 0:00:54]}  Kb7 {[%clk 0:00:05]} 60. Qf7+ {[%clk 0:00:53]}  Kc8 {[%clk 0:00:06]} 61. Qxf4 {[%clk 0:00:52]}  Re1 {[%clk 0:00:05]} 62. Qf5+ {[%clk 0:00:49]}  Kb7 {[%clk 0:00:04]} 63. Qf7+ {[%clk 0:00:46]}  Kb8 {[%clk 0:00:04]} 64. Qe8+ {[%clk 0:00:46]}  Kc7 {[%clk 0:00:04]} 65. Qe7+ {[%clk 0:00:46]}  Kc8 {[%clk 0:00:04]} 66. Qe6+ {[%clk 0:00:45]}  Kc7 {[%clk 0:00:03]} 67. Qd6+ {[%clk 0:00:45]}  Kb7 {[%clk 0:00:03]} 68. Qd7+ {[%clk 0:00:45]}  Kb8 {[%clk 0:00:04]} 69. Kc2 {[%clk 0:00:45]}  d4 {[%clk 0:00:02]} 70. Qxd4 {[%clk 0:00:42]}  e2 {[%clk 0:00:02]} 71. Qh8+ {[%clk 0:00:40]}  Kb7 {[%clk 0:00:02]} 72. Qh7+ {[%clk 0:00:41]}  Kb8 {[%clk 0:00:02]} 73. Qh8+ {[%clk 0:00:31]}  Kb7 {[%clk 0:00:02]} 74. Qg7+ {[%clk 0:00:31]}  Kb8 {[%clk 0:00:02]} 75. Qf8+ {[%clk 0:00:31]}  Kb7 {[%clk 0:00:02]} 76. Qe7+ {[%clk 0:00:32]}  Kb8 {[%clk 0:00:02]} 77. Kd2 {[%clk 0:00:32]}  Ra1 {[%clk 0:00:01]} 78. Kxe2 {[%clk 0:00:32]}  Ra2+ {[%clk 0:00:01]} 79. Kd3 {[%clk 0:00:32]}  Ra3+ {[%clk 0:00:02]} 80. Kc4 {[%clk 0:00:32]}  Ra1 {[%clk 0:00:02]} 81. Qe5+ {[%clk 0:00:31]}  Kb7 {[%clk 0:00:02]} 82. Qxa1 {[%clk 0:00:31]}  Ka8 {[%clk 0:00:02]} 83. Qe5 {[%clk 0:00:32]}  Ka7 {[%clk 0:00:03]} 84. f4 {[%clk 0:00:32]}  Kb7 {[%clk 0:00:03]} 85. f5 {[%clk 0:00:33]}  Kc8 {[%clk 0:00:04]} 86. f6 {[%clk 0:00:34]}  Kd7 {[%clk 0:00:03]} 87. f7 {[%clk 0:00:35]}  Kc8 {[%clk 0:00:04]} 88. f8=Q+ {[%clk 0:00:35]}  Kd7 {[%clk 0:00:03]} 89. Qee7# {[%clk 0:00:36]} 1-0


[Site "https://www.chess.com"]

[Event "Titled Tuesday Blitz November 07 Early 2023"]
[White "HamedWafa4"]
[Black "Pujari, Rucha"]
[BlackFideId "5024528"]
[WhiteElo "2644"]
[BlackElo "2495"]
[Result "0-1"]
[Round "7"]
[TimeControl "180+1"]
[Date "2023.11.07"]
[WhiteClock "0:00:27"]
[BlackClock "0:00:17"]
[Board "100"]

1. e4 {[%clk 0:03:00]}  e5 {[%clk 0:02:59]} 2. Nf3 {[%clk 0:02:57]}  Nc6 {[%clk 0:03:00]} 3. Bc4 {[%clk 0:02:56]}  Nf6 {[%clk 0:02:59]} 4. d3 {[%clk 0:02:56]}  Be7 {[%clk 0:02:59]} 5. O-O {[%clk 0:02:55]}  O-O {[%clk 0:03:00]} 6. a4 {[%clk 0:02:55]}  d6 {[%clk 0:02:58]} 7. Nc3 {[%clk 0:02:54]}  Bg4 {[%clk 0:02:56]} 8. h3 {[%clk 0:02:54]}  Bh5 {[%clk 0:02:38]} 9. Be3 {[%clk 0:02:43]}  Kh8 {[%clk 0:02:36]} 10. Kh2 {[%clk 0:02:31]}  Qd7 {[%clk 0:02:33]} 11. Rg1 {[%clk 0:02:28]}  Nd4 {[%clk 0:02:29]} 12. g4 {[%clk 0:02:24]}  Nxg4+ {[%clk 0:02:08]} 13. hxg4 {[%clk 0:02:23]}  Bxg4 {[%clk 0:02:09]} 14. Nxe5 {[%clk 0:02:17]}  Bxd1 {[%clk 0:01:46]} 15. Nxd7 {[%clk 0:02:17]}  Nf3+ {[%clk 0:01:42]} 16. Kg2 {[%clk 0:02:09]}  Nxg1 {[%clk 0:01:07]} 17. Nxf8 {[%clk 0:01:55]}  Bf3+ {[%clk 0:00:24]} 18. Kxg1 {[%clk 0:01:40]}  Rxf8 {[%clk 0:00:23]} 19. Bxa7 {[%clk 0:01:29]}  f5 {[%clk 0:00:19]} 20. exf5 {[%clk 0:01:13]}  Rxf5 {[%clk 0:00:20]} 21. Be3 {[%clk 0:01:13]}  Rh5 {[%clk 0:00:17]} 22. Ne4 {[%clk 0:00:27]}  Rh1# {[%clk 0:00:17]} 0-1


[Site "https://www.chess.com"]

[Event "Titled Tuesday Blitz November 07 Early 2023"]
[White "Pinto, Daniel"]
[Black "Gubajdullin, Alexei"]
[WhiteFideId "3303144"]
[BlackFideId "4141202"]
[WhiteElo "2485"]
[BlackElo "2626"]
[Result "0-1"]
[Round "7"]
[TimeControl "180+1"]
[Date "2023.11.07"]
[WhiteClock "0:00:00"]
[BlackClock "0:00:59"]
[Board "103"]

1. e4 {[%clk 0:02:57]}  g6 {[%clk 0:03:00]} 2. d4 {[%clk 0:02:56]}  Bg7 {[%clk 0:03:00]} 3. Nf3 {[%clk 0:02:56]}  d6 {[%clk 0:03:00]} 4. h3 {[%clk 0:02:51]}  a6 {[%clk 0:02:58]} 5. a4 {[%clk 0:02:43]}  a5 {[%clk 0:02:56]} 6. c3 {[%clk 0:02:40]}  Nf6 {[%clk 0:02:55]} 7. Bd3 {[%clk 0:02:40]}  O-O {[%clk 0:02:56]} 8. O-O {[%clk 0:02:40]}  Nc6 {[%clk 0:02:57]} 9. d5 {[%clk 0:02:19]}  Nb8 {[%clk 0:02:52]} 10. Be3 {[%clk 0:02:13]}  c6 {[%clk 0:02:52]} 11. c4 {[%clk 0:02:01]}  Nfd7 {[%clk 0:02:50]} 12. Nc3 {[%clk 0:01:56]}  Na6 {[%clk 0:02:48]} 13. Rc1 {[%clk 0:01:38]}  Ndc5 {[%clk 0:02:46]} 14. Bb1 {[%clk 0:01:35]}  Qb6 {[%clk 0:02:45]} 15. Re1 {[%clk 0:01:26]}  Qxb2 {[%clk 0:02:42]} 16. Nd4 {[%clk 0:01:21]}  Qb6 {[%clk 0:02:33]} 17. f4 {[%clk 0:01:16]}  Bd7 {[%clk 0:02:28]} 18. Bf2 {[%clk 0:01:12]}  Qc7 {[%clk 0:02:22]} 19. Qe2 {[%clk 0:01:05]}  e5 {[%clk 0:02:14]} 20. dxe6 {[%clk 0:00:48]}  Nxe6 {[%clk 0:02:13]} 21. Nxe6 {[%clk 0:00:47]}  fxe6 {[%clk 0:02:11]} 22. e5 {[%clk 0:00:47]}  Rxf4 {[%clk 0:01:51]} 23. exd6 {[%clk 0:00:38]}  Qxd6 {[%clk 0:01:50]} 24. Bg3 {[%clk 0:00:36]}  Qc5+ {[%clk 0:01:46]} 25. Kh2 {[%clk 0:00:17]}  Qxc4 {[%clk 0:01:38]} 26. Qe3 {[%clk 0:00:04]}  Rf7 {[%clk 0:01:29]} 27. Ba2 {[%clk 0:00:04]}  Qd4 {[%clk 0:01:28]} 28. Qe2 {[%clk 0:00:03]}  Re8 {[%clk 0:01:24]} 29. Ne4 {[%clk 0:00:03]}  Be5 {[%clk 0:01:17]} 30. Rcd1 {[%clk 0:00:03]}  Bxg3+ {[%clk 0:01:16]} 31. Nxg3 {[%clk 0:00:03]}  Qxa4 {[%clk 0:01:12]} 32. Rxd7 {[%clk 0:00:02]}  Rxd7 {[%clk 0:01:09]} 33. Bxe6+ {[%clk 0:00:03]}  Rxe6 {[%clk 0:01:05]} 34. Qxe6+ {[%clk 0:00:03]}  Rf7 {[%clk 0:01:05]} 35. Qe8+ {[%clk 0:00:04]}  Kg7 {[%clk 0:01:05]} 36. Re7 {[%clk 0:00:03]}  Qc4 {[%clk 0:01:02]} 37. Re6 {[%clk 0:00:01]}  Nc7 {[%clk 0:01:00]} 38. Qc8 {[%clk 0:00:01]}  Qxe6 {[%clk 0:00:59]} 39. Qxe6 {[%clk 0:00:00]}  Nxe6 {[%clk 0:00:59]} 0-1


[Site "https://www.chess.com"]

[Event "Titled Tuesday Blitz November 07 Early 2023"]
[White "Ambartsumova, Karina"]
[Black "vishwa_vijeta"]
[WhiteFideId "4166299"]
[WhiteElo "2608"]
[BlackElo "2479"]
[Result "1/2-1/2"]
[Round "7"]
[TimeControl "180+1"]
[Date "2023.11.07"]
[WhiteClock "0:00:14"]
[BlackClock "0:00:13"]
[Board "105"]

1. d4 {[%clk 0:03:00]}  Nf6 {[%clk 0:02:56]} 2. c4 {[%clk 0:03:00]}  g6 {[%clk 0:02:54]} 3. g3 {[%clk 0:03:00]}  c6 {[%clk 0:02:51]} 4. Bg2 {[%clk 0:02:59]}  d5 {[%clk 0:02:50]} 5. b3 {[%clk 0:03:00]}  Bg7 {[%clk 0:02:48]} 6. Bb2 {[%clk 0:03:00]}  O-O {[%clk 0:02:47]} 7. Nf3 {[%clk 0:03:00]}  dxc4 {[%clk 0:02:45]} 8. bxc4 {[%clk 0:03:01]}  Qb6 {[%clk 0:02:39]} 9. Qc1 {[%clk 0:02:58]}  c5 {[%clk 0:02:39]} 10. O-O {[%clk 0:02:48]}  cxd4 {[%clk 0:02:38]} 11. Bxd4 {[%clk 0:02:46]}  Qa6 {[%clk 0:02:38]} 12. Nc3 {[%clk 0:02:35]}  Qxc4 {[%clk 0:02:27]} 13. Rd1 {[%clk 0:02:12]}  Nc6 {[%clk 0:02:23]} 14. e3 {[%clk 0:02:12]}  Nxd4 {[%clk 0:02:15]} 15. Nxd4 {[%clk 0:02:10]}  Rd8 {[%clk 0:02:12]} 16. Ncb5 {[%clk 0:01:56]}  Qxc1 {[%clk 0:01:37]} 17. Raxc1 {[%clk 0:01:57]}  e5 {[%clk 0:01:35]} 18. Nc7 {[%clk 0:01:48]}  Rb8 {[%clk 0:01:03]} 19. Ndb5 {[%clk 0:01:47]}  Bd7 {[%clk 0:01:00]} 20. Nxa7 {[%clk 0:01:46]}  Bf8 {[%clk 0:00:57]} 21. Nab5 {[%clk 0:01:23]}  Bxb5 {[%clk 0:00:52]} 22. Nxb5 {[%clk 0:01:24]}  Rxd1+ {[%clk 0:00:52]} 23. Rxd1 {[%clk 0:01:25]}  b6 {[%clk 0:00:48]} 24. a4 {[%clk 0:00:59]}  Rc8 {[%clk 0:00:45]} 25. h3 {[%clk 0:00:27]}  Rc4 {[%clk 0:00:41]} 26. Ra1 {[%clk 0:00:26]}  Rb4 {[%clk 0:00:37]} 27. Nc3 {[%clk 0:00:23]}  Rb2 {[%clk 0:00:32]} 28. Nd5 {[%clk 0:00:23]}  Nxd5 {[%clk 0:00:31]} 29. Bxd5 {[%clk 0:00:24]}  Bc5 {[%clk 0:00:26]} 30. Rc1 {[%clk 0:00:18]}  Rb4 {[%clk 0:00:19]} 31. a5 {[%clk 0:00:17]}  Ra4 {[%clk 0:00:19]} 32. axb6 {[%clk 0:00:15]}  Bxb6 {[%clk 0:00:20]} 33. Rc8+ {[%clk 0:00:14]}  Kg7 {[%clk 0:00:20]} 34. Rb8 {[%clk 0:00:14]}  Bc5 {[%clk 0:00:20]} 35. Rb7 {[%clk 0:00:14]}  Ra7 {[%clk 0:00:18]} 36. Rb5 {[%clk 0:00:14]}  Rc7 {[%clk 0:00:18]} 37. h4 {[%clk 0:00:14]}  f5 {[%clk 0:00:17]} 38. Kg2 {[%clk 0:00:14]}  e4 {[%clk 0:00:16]} 39. Rb8 {[%clk 0:00:13]}  Be7 {[%clk 0:00:15]} 40. Re8 {[%clk 0:00:11]}  Bf6 {[%clk 0:00:15]} 41. Rb8 {[%clk 0:00:10]}  Rd7 {[%clk 0:00:15]} 42. Rg8+ {[%clk 0:00:09]}  Kh6 {[%clk 0:00:15]} 43. Be6 {[%clk 0:00:10]}  Re7 {[%clk 0:00:14]} 44. Bd5 {[%clk 0:00:08]}  Rd7 {[%clk 0:00:14]} 45. Bc4 {[%clk 0:00:06]}  Rc7 {[%clk 0:00:14]} 46. Be6 {[%clk 0:00:06]}  Rc6 {[%clk 0:00:13]} 47. Re8 {[%clk 0:00:05]}  Rc7 {[%clk 0:00:11]} 48. Bd5 {[%clk 0:00:05]}  Rd7 {[%clk 0:00:10]} 49. Be6 {[%clk 0:00:05]}  Re7 {[%clk 0:00:10]} 50. Rxe7 {[%clk 0:00:05]}  Bxe7 {[%clk 0:00:11]} 51. Kh3 {[%clk 0:00:04]}  Kg7 {[%clk 0:00:12]} 52. Bd5 {[%clk 0:00:03]}  Kf6 {[%clk 0:00:11]} 53. Bc6 {[%clk 0:00:03]}  h5 {[%clk 0:00:12]} 54. Kg2 {[%clk 0:00:04]}  Bd6 {[%clk 0:00:12]} 55. Bb5 {[%clk 0:00:04]}  Ke5 {[%clk 0:00:12]} 56. Be2 {[%clk 0:00:05]}  Kf6 {[%clk 0:00:13]} 57. Bc4 {[%clk 0:00:05]}  Ke5 {[%clk 0:00:13]} 58. Bb5 {[%clk 0:00:05]}  Kf6 {[%clk 0:00:14]} 59. Be8 {[%clk 0:00:05]}  Ke5 {[%clk 0:00:15]} 60. Bxg6 {[%clk 0:00:05]}  Kf6 {[%clk 0:00:14]} 61. Bxh5 {[%clk 0:00:05]}  Be7 {[%clk 0:00:15]} 62. Be2 {[%clk 0:00:06]}  Bd6 {[%clk 0:00:15]} 63. f3 {[%clk 0:00:06]}  Bc5 {[%clk 0:00:14]} 64. Kf2 {[%clk 0:00:05]}  Bd6 {[%clk 0:00:08]} 65. Bf1 {[%clk 0:00:05]}  Kg6 {[%clk 0:00:07]} 66. Bg2 {[%clk 0:00:05]}  exf3 {[%clk 0:00:07]} 67. Bxf3 {[%clk 0:00:06]}  Kf6 {[%clk 0:00:08]} 68. Kg2 {[%clk 0:00:05]}  Kg6 {[%clk 0:00:08]} 69. e4 {[%clk 0:00:06]}  fxe4 {[%clk 0:00:08]} 70. Bxe4+ {[%clk 0:00:07]}  Kh6 {[%clk 0:00:09]} 71. Kh3 {[%clk 0:00:07]}  Be7 {[%clk 0:00:08]} 72. Kg4 {[%clk 0:00:07]}  Bd6 {[%clk 0:00:08]} 73. Kf3 {[%clk 0:00:07]}  Be7 {[%clk 0:00:07]} 74. Bd3 {[%clk 0:00:07]}  Bd6 {[%clk 0:00:07]} 75. Kg2 {[%clk 0:00:08]}  Bxg3 {[%clk 0:00:06]} 76. Kxg3 {[%clk 0:00:07]}  Kg7 {[%clk 0:00:06]} 77. Kh3 {[%clk 0:00:08]}  Kh8 {[%clk 0:00:07]} 78. Kg4 {[%clk 0:00:09]}  Kg7 {[%clk 0:00:08]} 79. h5 {[%clk 0:00:10]}  Kh8 {[%clk 0:00:09]} 80. Be4 {[%clk 0:00:11]}  Kg7 {[%clk 0:00:10]} 81. Kg5 {[%clk 0:00:12]}  Kh8 {[%clk 0:00:11]} 82. h6 {[%clk 0:00:13]}  Kg8 {[%clk 0:00:10]} 83. Kh5 {[%clk 0:00:14]}  Kh8 {[%clk 0:00:11]} 84. Kg6 {[%clk 0:00:13]}  Kg8 {[%clk 0:00:12]} 85. h7+ {[%clk 0:00:14]}  Kh8 {[%clk 0:00:13]} 86. Kh6 {[%clk 0:00:14]} 1/2-1/2


[Site "https://www.chess.com"]

[Event "Titled Tuesday Blitz November 07 Early 2023"]
[White "Berezin, Viktor"]
[Black "Gontcharov, Vladislav"]
[WhiteFideId "14107872"]
[BlackFideId "4123492"]
[WhiteElo "2457"]
[BlackElo "2569"]
[Result "1-0"]
[Round "7"]
[TimeControl "180+1"]
[Date "2023.11.07"]
[WhiteClock "0:00:09"]
[BlackClock "0:00:17"]
[Board "112"]

1. Nf3 {[%clk 0:02:56]}  Nf6 {[%clk 0:02:58]} 2. c4 {[%clk 0:02:55]}  e6 {[%clk 0:02:57]} 3. g3 {[%clk 0:02:56]}  d5 {[%clk 0:02:57]} 4. Bg2 {[%clk 0:02:56]}  d4 {[%clk 0:02:55]} 5. O-O {[%clk 0:02:56]}  c5 {[%clk 0:02:55]} 6. d3 {[%clk 0:02:56]}  Nc6 {[%clk 0:02:55]} 7. b4 {[%clk 0:02:54]}  cxb4 {[%clk 0:02:52]} 8. a3 {[%clk 0:02:54]}  a5 {[%clk 0:02:46]} 9. axb4 {[%clk 0:02:54]}  Bxb4 {[%clk 0:02:45]} 10. Ba3 {[%clk 0:02:51]}  Bxa3 {[%clk 0:02:31]} 11. Nxa3 {[%clk 0:02:50]}  O-O {[%clk 0:02:31]} 12. Nb5 {[%clk 0:02:50]}  e5 {[%clk 0:02:27]} 13. Ng5 {[%clk 0:02:42]}  h6 {[%clk 0:02:22]} 14. Ne4 {[%clk 0:02:40]}  Nxe4 {[%clk 0:02:22]} 15. Bxe4 {[%clk 0:02:41]}  Be6 {[%clk 0:02:22]} 16. c5 {[%clk 0:02:34]}  Qd7 {[%clk 0:02:14]} 17. Nd6 {[%clk 0:02:25]}  Ra7 {[%clk 0:01:53]} 18. Qa4 {[%clk 0:02:19]}  f5 {[%clk 0:01:44]} 19. Bg2 {[%clk 0:02:17]}  h5 {[%clk 0:01:42]} 20. Rab1 {[%clk 0:01:59]}  Qc7 {[%clk 0:01:33]} 21. Nb5 {[%clk 0:01:53]}  Qb8 {[%clk 0:01:29]} 22. Nxa7 {[%clk 0:01:39]}  Qxa7 {[%clk 0:01:29]} 23. Bxc6 {[%clk 0:01:37]}  bxc6 {[%clk 0:01:29]} 24. Qxc6 {[%clk 0:01:38]}  Bf7 {[%clk 0:01:29]} 25. Qb6 {[%clk 0:01:20]}  Qe7 {[%clk 0:01:24]} 26. Qc6 {[%clk 0:00:57]}  h4 {[%clk 0:01:20]} 27. Rb7 {[%clk 0:00:55]}  Qg5 {[%clk 0:01:20]} 28. Rfb1 {[%clk 0:00:37]}  hxg3 {[%clk 0:01:19]} 29. hxg3 {[%clk 0:00:37]}  e4 {[%clk 0:00:57]} 30. Qd6 {[%clk 0:00:32]}  exd3 {[%clk 0:00:49]} 31. Rb8 {[%clk 0:00:23]}  Rxb8 {[%clk 0:00:48]} 32. Rxb8+ {[%clk 0:00:20]}  Kh7 {[%clk 0:00:48]} 33. exd3 {[%clk 0:00:21]}  Bh5 {[%clk 0:00:44]} 34. Qf4 {[%clk 0:00:17]}  Qg6 {[%clk 0:00:44]} 35. Rb6 {[%clk 0:00:15]}  Qf7 {[%clk 0:00:42]} 36. c6 {[%clk 0:00:13]}  Qd5 {[%clk 0:00:25]} 37. c7 {[%clk 0:00:13]}  Qc5 {[%clk 0:00:25]} 38. Rb8 {[%clk 0:00:10]}  Qc2 {[%clk 0:00:19]} 39. c8=Q {[%clk 0:00:08]}  Qd1+ {[%clk 0:00:20]} 40. Kg2 {[%clk 0:00:08]}  Bg4 {[%clk 0:00:18]} 41. Qh8+ {[%clk 0:00:08]}  Kg6 {[%clk 0:00:18]} 42. Rb6+ {[%clk 0:00:09]}  Kf7 {[%clk 0:00:17]} 43. Qc7# {[%clk 0:00:09]} 1-0


[Site "https://www.chess.com"]